Cogmind - Beta 14 @@@ ROGUE MODE // 2025.03.29 @ 18:46:45 Player: mix Result: Destroyed by D-53 Grenadier with Mini Grenade Launcher Performance ------------- Evolutions (1) 500 Regions Visited (4) 800 Robots Destroyed (31) 155 Value Destroyed (711) 711 Prototype IDs (1) 20 Alien Tech Used (0) 0 Bonus (0) 0 TOTAL SCORE: 2186 Bonus ------- None Cogmind --------- Core Integrity 0/400 Matter 300/300 Energy 100/100 System Corruption 0% Temperature Cool (0) Movement Core (200) Ox3 Location -9/Mines Parts ------- > --- POWER (1) -------- (None) > --- PROPULSION (3) --- (None) > --- UTILITY (3) ------ Medium Storage Unit > --- WEAPON (2) ------- Mace > --- INVENTORY (10) --- Light Treads Light Treads Flight Unit VTOL Module Light Armor Plating Improved EM Shotgun Small Laser Particle Gun Particle Cannon Mining Laser Peak State ------------ > --- POWER ------------ (None) > --- PROPULSION ------- Hover Unit Hover Unit > --- UTILITY ---------- Medium Storage Unit > --- WEAPON ----------- Improved EM Shotgun Mace > --- INVENTORY -------- Light Treads Light Treads Compact Wheel Flight Unit Light Armor Plating Small Laser Particle Gun Particle Cannon Mining Laser [Rating: 9] Favorites ----------- Power Ion Engine Engine Ion Engine Propulsion Light Treads Treads Light Treads Wheel Compact Wheel Hover Unit Hover Unit Utility Medium Storage Unit Device Structural Scanner Storage Medium Storage Unit Weapon Light Cannon Energy Gun Small Laser Ballistic Gun Assault Rifle Ballistic Cannon Light Cannon Impact Weapon Mace Build | -11 -10 -10 -9 -9 ------- Run | Yrd Mat Min Mat Min Slots Evolved 2 | . . . 2 . Power . | . . . . . Propulsion 1 | . . . 1 . Utility 1 | . . . 1 . Weapon . | . . . . . Parts Attached 19 | 7 6 . 6 . Power 1 | 1 . . . . Engine 1 | 1 . . . . Core . | . . . . . Reactor . | . . . . . Propulsion 6 | 3 . . 3 . Treads 2 | 2 . . . . Leg . | . . . . . Wheel 2 | 1 . . 1 . Hover 2 | . . . 2 . Flight . | . . . . . Utility 4 | 1 3 . . . Device 2 | . 2 . . . Storage 2 | 1 1 . . . Processor . | . . . . . Hackware . | . . . . . Protection . | . . . . . Artifact . | . . . . . Weapon 8 | 2 3 . 3 . Energy Gun 3 | . 1 . 2 . Energy Cannon . | . . . . . Ballistic Gun 2 | 2 . . . . Ballistic Cannon 2 | . 2 . . . Launcher . | . . . . . Special Weapon . | . . . . . Impact Weapon 1 | . . . 1 . Slashing Weapon . | . . . . . Piercing Weapon . | . . . . . Special Melee Weapon . | . . . . . Unidentified Prototypes 1 | . . . 1 . Parts Lost 9 | . . . 8 1 Power 1 | . . . 1 . Propulsion 5 | . . . 4 1 Utility 1 | . . . 1 . Weapon 2 | . . . 2 . Highest Loss Streak 4 | . . . 4 1 To Critical Strikes . | . . . . . Average Slot Usage (%) 79 | . 98 100 60 32 Engine 10 | . 14 14 5 . Treads 21 | . 28 28 14 . Wheel 1 | . . . 1 10 Hover 1 | . . . 3 . Device 9 | . 12 14 7 . Storage 12 | . 14 14 11 11 Energy Gun 1 | . 1 . 1 . Ballistic Gun 2 | . 4 . . . Ballistic Cannon 17 | . 22 28 12 . Impact Weapon 1 | . . . 2 11 Peak Build Rating 9 | 6 7 7 9 5 Average Rating 6 | 4 6 7 6 4 On Entrance 5 | . 6 7 7 5 Naked Turns . | . . . . . Heaviest Build 22 | 13 22 22 22 12 Greatest Support 40 | 40 40 40 40 16 Greatest Overweight (x) 3 | . . . 1 3 Average Overweight (x) . | . . . . . Largest Inventory Capacity 10 | 8 10 10 10 10 Average Capacity 9 | 7 9 10 10 10 Most Carried 10 | 5 7 7 10 10 Average Carried 6 | 1 5 7 8 10 Final Capacity 10 | 8 10 10 10 10 Final Carried 10 | 1 7 7 10 10 Class Distribution -------------------- 100% | Mutant Dominant Class ---------------- Mutant | -10/Materials Mutant | -10/Mines Mutant | -9/Materials Mutant | -9/Mines Resources | -11 -10 -10 -9 -9 ----------- Run | Yrd Mat Min Mat Min Matter Collected 894 | 178 335 . 376 5 Remotely . | . . . . . Salvage Created 915 | . 386 . 518 11 Parts 69 | . 33 . 36 . Haulers Intercepted 5 | . 2 . 3 . Recyclers Shooed . | . . . . . Parts Field Recycled . | . . . . . Retrieved Matter . | . . . . . Parts Self-Destructed . | . . . . . Prevented . | . . . . . Kills | -11 -10 -10 -9 -9 ------- Run | Yrd Mat Min Mat Min Combat Hostiles Destroyed 21 | . 8 . 12 1 Melee 1 | . . . . 1 Guns 2 | . 1 . 1 . Cannons 18 | . 7 . 11 . Classes Destroyed 9 | . 6 . 2 1 Worker 1 | . 1 . . . Builder 2 | . 2 . . . Hauler 5 | . 2 . 3 . Operator 1 | . . . 1 . Watcher 2 | . 2 . . . Swarmer 6 | . 3 . 3 . Grunt 10 | . 5 . 5 . Sentry 4 | . . . 4 . Assembled 1 | . . . . 1 Best Kill Streak 3 | . 3 . 3 1 Combat Bots Only 3 | . 3 . 3 1 Max Kills in Single Turn 1 | . 1 . 1 1 Gunslinging . | . . . . . Exploded . | . . . . . Melee 1 | . . . . 1 Uniques/NPCs Destroyed . | . . . . . Combat | -11 -10 -10 -9 -9 -------- Run | Yrd Mat Min Mat Min Hostile Shots Fired 119 | . 35 . 76 8 Missed 33 | . 12 . 20 1 Damage Taken 1262 | . 239 . 720 303 Core 451 | . 47 . 193 211 Absorbed by Shields . | . . . . . Core Remaining (%) 90 | 100 . 81 . . Volleys Fired 90 | . 43 . 47 . Largest 2 | . 2 . 2 . Hottest 70 | . 70 . 70 . Shots Fired 158 | . 86 . 72 . Gun 37 | . 28 . 9 . Cannon 121 | . 58 . 63 . Launcher . | . . . . . Special . | . . . . . Kinetic 142 | . 79 . 63 . Thermal 16 | . 7 . 9 . Explosive . | . . . . . Electromagnetic . | . . . . . Robot Hit Streak 10 | . 10 . 9 . Robot Miss Streak 6 | . 3 . 6 . Penetration Max . | . . . . . Secondary Targets . | . . . . . Shots Hit Robots 92 | . 47 . 44 1 Core Hits 40 | . 20 . 20 . Critical Kills . | . . . . . Critical Parts Destroyed 1 | . . . . 1 Critical Strikes 5 | . 1 . 3 1 Blast 4 | . 1 . 3 . Smash 1 | . . . . 1 Melee Attacks 2 | . . . 1 1 Impact 2 | . . . 1 1 Slashing . | . . . . . Piercing . | . . . . . Sneak Attacks 1 | . . . 1 . Combat Hostiles . | . . . . . Follow-up Attacks . | . . . . . Damage Inflicted 1603 | . 731 . 821 51 Guns 341 | . 243 . 98 . Cannons 1166 | . 488 . 678 . Explosions . | . . . . . Melee 96 | . . . 45 51 Ramming . | . . . . . Kinetic 1364 | . 686 . 678 . Thermal 143 | . 45 . 98 . Explosive . | . . . . . Electromagnetic . | . . . . . Impact 96 | . . . 45 51 Slashing . | . . . . . Piercing . | . . . . . Highest Corruption . | . . . . . Average Corruption . | . . . . . Corruption Purged . | . . . . . Corruption Blocked . | . . . . . Overload Shots . | . . . . . Overflow Damage 74 | . . . 23 51 Projectiles . | . . . . . Explosions . | . . . . . Melee 74 | . . . 23 51 Knockbacks 14 | . 8 . 6 . Impact . | . . . . . Kinetic 14 | . 8 . 6 . Secondary . | . . . . . Self-Inflicted Damage . | . . . . . Shots . | . . . . . Rammed . | . . . . . Targets Rammed . | . . . . . Kicked . | . . . . . Crushed . | . . . . . Highest Temperature 87 | . 81 . 87 . Average Temperature 28 | . 25 . 33 . Received Heat Transfer 402 | . 96 . 306 . Siege Activations . | . . . . . Robots Corrupted 1 | . . . 1 . Combat Hostiles . | . . . . . Parts Fried . | . . . . . Impact Corruptions 2 | . . . 1 1 Robots Melted . | . . . . . Combat Hostiles . | . . . . . Parts Melted . | . . . . . Heat Transferred 322 | . 100 . 222 . Parts Sabotaged . | . . . . . Parts Stolen . | . . . . . Parts Stripped . | . . . . . Power Chain Reactions . | . . . . . Alert | -11 -10 -10 -9 -9 ------- Run | Yrd Mat Min Mat Min Peak Influence 318 | . 179 16 318 80 Initial 65 | . . 16 5 65 Average 101 | . 56 16 182 73 Maximum Alert Level 1 | . . . 1 . Low Security (%) 82 | 100 100 100 53 100 Level 1 17 | . . . 46 . Level 2 . | . . . . . Level 3 . | . . . . . Level 4 . | . . . . . Level 5 . | . . . . . High Security . | . . . . . Max Security . | . . . . . Squads Dispatched 4 | . 1 . 3 . Investigation 2 | . 1 . 1 . Extermination . | . . . . . Reinforcement 2 | . . . 2 . Assault . | . . . . . Garrison . | . . . . . Intercept . | . . . . . Searches Triggered . | . . . . . Construction Impeded . | . . . . . Haulers Reinforced . | . . . . . Active Scanning Responses . | . . . . . Cargo Convoy Interrupts . | . . . . . Stealth | -11 -10 -10 -9 -9 --------- Run | Yrd Mat Min Mat Min Distress Signals 1 | . . . 1 . Communications Jammed . | . . . . . Distress Signals . | . . . . . Times Spotted 54 | . 13 . 33 8 Peak Tracking Total 13 | . 4 . 8 13 Tactical Retreats 7 | . 1 . 5 1 Traps | -11 -10 -10 -9 -9 ------- Run | Yrd Mat Min Mat Min Traps Triggered 2 | . 1 . 1 . Indirectly . | . . . . . Trap Hack Attempts . | . . . . . Triggered . | . . . . . Disarmed . | . . . . . Reprogrammed . | . . . . . Reused . | . . . . . Traps Extracted . | . . . . . Installed . | . . . . . Triggered . | . . . . . Machines | -11 -10 -10 -9 -9 ---------- Run | Yrd Mat Min Mat Min Machines Disabled 1 | . . . 1 . Max in Single Turn 1 | . . . 1 . Machines Repaired . | . . . . . Machines Dismantled . | . . . . . Machines Sabotaged . | . . . . . Overloaded Fab Kills . | . . . . . Hacking | -11 -10 -10 -9 -9 --------- Run | Yrd Mat Min Mat Min Machines Accessed 4 | . 3 . 1 . Terminals 3 | . 2 . 1 . Fabricators . | . . . . . Repair Stations . | . . . . . Recycling Units 1 | . 1 . . . Scanalyzers . | . . . . . Garrison Access . | . . . . . Total Hacks 9 | . 7 . 2 . Successful 4 | . 4 . . . Failed 5 | . 3 . 2 . Catastrophic 1 | . 1 . . . Database Lockouts . | . . . . . Manual 9 | . 7 . 2 . Terminals 8 | . 6 . 2 . Fabricators . | . . . . . Repair Stations . | . . . . . Recycling Units 1 | . 1 . . . Scanalyzers . | . . . . . Garrison Access . | . . . . . Terminal Hacks . | . . . . . Fabricator Hacks . | . . . . . Repair Station Hacks . | . . . . . Recycling Unit Hacks . | . . . . . Scanalyzer . | . . . . . Garrison Access Hacks . | . . . . . Unauthorized Hacks 4 | . 4 . . . Terminals 3 | . 3 . . . Botnet 2 | . 2 . . . Operators 1 | . 1 . . . Fabricators . | . . . . . Repair Stations . | . . . . . Recycling Units 1 | . 1 . . . Reject 1 | . 1 . . . Scanalyzers . | . . . . . Garrison Access . | . . . . . Data Cores Recovered . | . . . . . Used . | . . . . . Hacking Detections 2 | . 1 . 1 . Full Trace Events . | . . . . . Feedback Events . | . . . . . Feedback Blocked . | . . . . . Robot Schematics Acquired . | . . . . . Robots Built . | . . . . . Authchips . | . . . . . Time . | . . . . . Total Robot Build Rating . | . . . . . Part Schematics Acquired . | . . . . . Parts Built . | . . . . . Authchips . | . . . . . Time . | . . . . . Total Part Build Rating . | . . . . . Parts Repaired . | . . . . . Time . | . . . . . Parts Recycled . | . . . . . Recycled Matter . | . . . . . Retrieved Matter . | . . . . . Retrieved Components . | . . . . . Parts Scanalyzed . | . . . . . Part Schematics Acquired . | . . . . . Parts Damaged . | . . . . . Bothacking | -11 -10 -10 -9 -9 ------------ Run | Yrd Mat Min Mat Min Used RIF Installer . | . . . . . Robots Hacked . | . . . . . Non-combat . | . . . . . Combat . | . . . . . Robot Hacks Applied . | . . . . . Relay Couplers Released . | . . . . . Fabnet Peak Effective % . | . . . . . Robots Rewired . | . . . . . Allies Hacked . | . . . . . Hacks Repelled . | . . . . . Allies | -11 -10 -10 -9 -9 -------- Run | Yrd Mat Min Mat Min Total Allies . | . . . . . Largest Group . | . . . . . Highest-Rated Group . | . . . . . Highest-Rated Ally . | . . . . . Total Orders . | . . . . . Ally Attacks . | . . . . . Total Damage . | . . . . . Kills . | . . . . . Allies Corrupted . | . . . . . Allies Melted . | . . . . . Intel | -11 -10 -10 -9 -9 ------- Run | Yrd Mat Min Mat Min Robot Analysis Total . | . . . . . Derelict Logs Recovered . | . . . . . Drone Launches . | . . . . . Drone Recoveries . | . . . . . Exploration | -11 -10 -10 -9 -9 ------------- Run | Yrd Mat Min Mat Min Turns Passed 2249 | 79 1104 93 855 118 Spaces Moved 1376 | 46 594 57 565 114 Core 2 | 1 . . . 1 Treads 957 | 34 594 57 272 . Legs . | . . . . . Wheels 266 | 11 . . 142 113 Hover 151 | . . . 151 . Flight . | . . . . . Fastest Speed 50 | 50 160 160 56 100 Average Speed 140 | 143 160 160 124 100 Slowest Speed 200 | 160 160 160 160 200 Overloaded Moves . | . . . . . Propulsion Burnouts . | . . . . . Robots Hopped . | . . . . . Cave-ins Triggered . | . . . . . Exploration Rate (%) 41 | 5 88 29 56 27 Regions Visited 4 Branch Regions 2 Pre-discovered Areas . | . . . . . Known Exits Taken . | . . . . . Unknown Exits Taken 4 | 1 1 1 1 . Scrap Searched . | . . . . . Spaces Dug . | . . . . . Terrain Destroyed . | . . . . . Melee . | . . . . . Projectile . | . . . . . AOE . | . . . . . Terrain Rammed . | . . . . . Walls Destroyed . | . . . . . Machines Disabled . | . . . . . Actions | -11 -10 -10 -9 -9 --------- Run | Yrd Mat Min Mat Min Total 1537 | 59 663 59 641 115 Wait 24 | . 6 3 15 . Move 1372 | 45 593 56 564 114 Hop . | . . . . . Pick Up 25 | 7 11 . 7 . Fast Attach . | . . . . . Attach 13 | 6 2 . 5 . Detach 1 | . . . 1 . Swap 6 | 1 4 . 1 . Drop 4 | . 4 . . . Fire 90 | . 43 . 47 . Melee 2 | . . . 1 1 Ram . | . . . . . Kick . | . . . . . Crush . | . . . . . Escape Stasis . | . . . . . Rewire . | . . . . . Trap . | . . . . . Miscellaneous . | . . . . . Route ------- -11/Scrapyard -10/Materials (discovered 4 exits: *Mat x3 / [*Min]) -10/Mines -9/Materials (discovered 3 exits: [*Mat x2] / [*Min]) -9/Mines History --------- Turn | Location | Event 32 | -11/Scrapyard | Discovered new exit (range 15) 80 | -11/Scrapyard | Entered Materials 309 | -10/Materials | Build established: Mutant 514 | -10/Materials | Discovered new exit (range 4) 935 | -10/Materials | Discovered new exit (range 5) 1060 | -10/Materials | Discovered new exit (range 3) 1172 | -10/Materials | Discovered new exit (range 9) 1184 | -10/Materials | Entered Mines 1256 | -10/Mines | Discovered new exit (range 14) 1273 | -10/Mines | Met a Derelict bent on vengeance 1277 | -10/Mines | Entered Materials 1277 | -9/Materials | Evolved 2 slots: Propulsion x1, Utility x1 1521 | -9/Materials | Discovered new exit (range 3) 1796 | -9/Materials | Discovered new exit (range 3) 1868 | -9/Materials | Lost 4 parts (2n1u1w) 2117 | -9/Materials | Discovered new exit (range 16) 2132 | -9/Materials | Entered Mines 2178 | -9/Mines | Assembled infested the area 2243 | -9/Mines | Core integrity fell below 50% 2249 | -9/Mines | Core integrity fell below 20% 2250 | -9/Mines | Destroyed by D-53 Grenadier with Mini Grenade Launcher Last Messages --------------- Something is scanning the area. ALERT: Infestation in the mines, dispatching Demolisher response squad. K-01 Serf collects debris. as-15336 sneak attacks. K-01 Serf system corrupted by crushing effect. K-01 Serf destroyed. as-15336 sneak attacks. U-05 Engineer knocked back. as-15336 suffers critical hit (Smash). Destroyed Asb. Hover Unit. as-15336 system corrupted by crushing effect. as-15336 destroyed. Acquired 5 matter. C-30 ARC bursts open, deploying its payload. D-53 Grenadier unfolds itself. The unstable cave ceiling collapses. U-05 Engineer builds a Wall. Com. Wheel destroyed. U-05 Engineer destroyed. Map ----- +----------------------------------------------------+ | ?????????????????????????????????????????????????? | | ?????????????????????????????????????????????????? | | ?????????????????????????????????????????????????? | | ?????????????????????????????????????????????????? | | ?????????????????????????????????????????????????? | | ?????????????????????????????????????????????????? | | ?????????????????????????????????????????????????? | | ?????????????????????????????????????????????????? | | ?????????????????????????????????????????????????? | | ?????????????????????????????????????????????????? | | ?????????????????????????????????????????????????? | | ???????????????????????? ????????????????????????? | | ???????????????????????? ????????????????????????? | | ???????????????????????? ????????????????????????? | | ???????????????????????? ????????????????????????? | | ??????????##???????????? ????????????????????????? | | ??????????# ??????????? ????????????????????????? | | ??????????? ??????????? ????????????????????????? | | ???????????#" ?????????? ##??????????????????????? | | ???????????#%"?????????? ??????????????????????? | | ???????????#" #????????? ??????????????????????? | | ???????????# #?######## #??????????????????????? | | ???????????# ## # ## ##?????????????????????? | | ????????????# d # ##????????????????????? | | ?????????????# d ##???????????????????? | | ?????????????# *@ #???????????????????? | | ?????######???# #??????????????????? | | ????## ##??# #??????????????????? | | ????# #??# #??????????????????? | | ????# #??## ##??????????????????? | | ????# ##?## # ##???????????????????? | | ???## ### ##### #????????????????????? | | ??## % #???## #????????????????????? | | ??# ! #????#! #????????????????????? | | ??# [ #????? #???????????????????? | | ??## ## ##????? #???????????????????? | | ???##?## ##??????# ##???????????????????? | | ???????## ##???????###????????????????????? | | ????????## ## ##?????????????????????????????? | | ?????????#### #?????????????????????????????? | | ????????????# % #?????????????????????????????? | | ????????????# ## #?????????????????????????????? | | ????????????# ## #?????????????????????????????? | | ????????????# ## ##????????????????????????????? | | ???????????? ## ##???????????????????????????? | | ???????????##### #???????????????????????????? | | ?????????????## #???????????????????????????? | | ????????????## #???????????????????????????? | | ????????????# ##???????????????????????????? | | ????????????# #######???????????????????????? | +----------------------------------------------------+ Best States ------------- Heat Dissipation 28 Energy Generation 10 Energy Capacity 250 Matter Stores 300 Matter Capacity 300 Sight Range 16 Terrain Scan Range 14 Terrain Scan Density 10 Evasion (%) 53 Recoil Reduction 2 Item Schematics ----------------- None Robot Schematics ------------------ None Fabricated ------------ Nothing Alien Tech Used ----------------- None Achievements -------------- None Challenges ------------ None Game ------ Seed StormPersonalDevice Manual? 0 Play Time 00:18:26 Cumulative 75.1 hours Start 2025.03.29 @ 18:26:11 End 2025.03.29 @ 18:46:45 Sessions 1 Manual Loads 0 Difficulty Rogue Special Mode None Game No. 112 Rogue 98 Adventurer 14 Explorer 0 Win Type - Total 0 Types 0/0/0/0/0/0/0/0/0 Lore% 34 Gallery% 46 Achievement% 41 Wizard Run 0 Options --------- Layout 1 ASCII 0 Keyboard 0 Movement Mouse Keybinds 0 Fullscreen 1 Font 24/Smallcaps Map View 50x35 Zoom Use 0% Tactical HUD 0 Map Filters NONE Filters NONE Steam 1 RUN: 755ae754-1818-45ea-88e0-b2e04ea0599f